fUSD/lending_fUSD_20250302
["ID","MTS","AMOUNT","RATE_DAILY","PERIOD"]
[355112890,1740903046482,-150.0,0.00026848,2]
[355112891,1740903046491,-500.0,0.00026849,2]
[355112892,1740903046501,-1000.0,0.00026852,2]
[355112893,1740903046511,-150.0,0.00026882,2]
[355112894,1740903046521,-458.45055887,0.00026899,2]
[355112895,1740903046531,-500.0,0.00026899,2]
[355112896,1740903046541,-500.0,0.00026899,2]
[355112897,1740903046551,-500.0,0.00026899,2]
[355112898,1740903046561,-196.29493344,0.00026899,2]
[355112899,1740903046571,-190.85161638,0.00026899,2]
[355112900,1740903046581,-500.0,0.00026899,2]
[355112901,1740903046590,-246.78915485,0.00026899,2]
[355112902,1740903046917,-155.3943624,0.00026899,2]
[355112903,1740903046928,-500.0,0.00026899,2]
[355112904,1740903046938,-653.55,0.00026899,2]
[355112905,1740903046947,-500.0,0.00026899,2]
[355112906,1740903046957,-556.96,0.00026899,2]
[355112907,1740903046966,-500.0,0.00026899,2]
[355112908,1740903046976,-4202.14,0.00026899,2]
[355112909,1740903046986,-500.0,0.00026899,2]
[355112910,1740903046995,-500.0,0.00026899,2]
[355112911,1740903047005,-479.30305495,0.00026899,2]
[355112912,1740903047015,-500.0,0.00026899,2]
[355112913,1740903047024,-573.32290945,0.00026899,2]
[355112914,1740903047034,-100000.0,0.000269,3]
[355112915,1740903047043,-100479.14406033,0.000269,3]
[355112917,1740903047053,-151.0,0.000269,7]
[355112919,1740903047063,-151.0,0.000269,7]
[355112921,1740903047072,-441.0,0.00027023,2]
[355112923,1740903047082,-318.89140289,0.00027038,4]
[355112925,1740903047092,-150.0,0.00027046,2]
[355112927,1740903047101,-150.0,0.00027059,2]
[355112930,1740903047113,-219.0,0.000271,2]
[355112932,1740903047122,-500.0,0.00027123,2]
[355112934,1740903047132,-3513.15,0.00027123,2]
[355112936,1740903047142,-5062.06449577,0.00027144,2]
[355112938,1740903047153,-500.0,0.00027173,2]
[355112940,1740903047162,-500.0,0.00027173,2]
[355112942,1740903047172,-500.0,0.00027173,2]
[355112944,1740903047182,-500.0,0.00027173,2]
[355112946,1740903047191,-653.55,0.00027173,2]
[355112948,1740903047201,-500.0,0.00027173,2]
[355112950,1740903047210,-231.69,0.00027173,2]
[355112952,1740903047220,-4202.14,0.00027173,2]
[355112954,1740903047230,-500.0,0.00027173,2]
[355112956,1740903047240,-500.0,0.00027173,2]
[355112958,1740903047249,-500.0,0.00027173,2]
[355112960,1740903047258,-150.0,0.00027204,2]
[355112962,1740903047269,-150.0,0.00027205,2]
[355112964,1740903047278,-150.0,0.00027291,2]
[355112966,1740903047287,-403.03,0.000273,2]
[355112968,1740903047297,-318.89140289,0.00027383,4]
[355112970,1740903047307,-500.0,0.00027397,2]
[355112972,1740903047317,-1008.47023034,0.00027397,2]
[355112974,1740903047326,-150.0,0.00027417,2]
[355112976,1740903047336,-150.0,0.00027438,2]
[355112978,1740903047347,-500.0,0.00027447,2]
[355112980,1740903047356,-500.0,0.00027447,2]
[355112982,1740903047365,-500.0,0.00027447,2]
[355112984,1740903047375,-500.0,0.00027447,2]
[355112985,1740903047384,-653.55,0.00027447,2]
[355112987,1740903047394,-503.50617714,0.00027447,2]
[355112989,1740903047404,-4202.14,0.00027447,2]
[355112991,1740903047414,-500.0,0.00027447,2]
[355112994,1740903047425,-500.0,0.00027447,2]
[355112995,1740903047434,-5062.06449577,0.00027489,2]
[355112997,1740903047444,-150.0,0.00027571,2]
[355112999,1740903047454,-150.0,0.00027598,2]
[355113002,1740903047464,-500.0,0.0002762,5]
[355113004,1740903047474,-150.0,0.00027644,2]
[355113006,1740903047484,-500.0,0.00027671,2]
[355113007,1740903047494,-150.0,0.000277,2]
[355113009,1740903047507,-150.0,0.00027711,2]
[355113011,1740903047517,-150.0,0.00027717,2]
[355113013,1740903047527,-500.0,0.00027721,2]
[355113015,1740903047537,-500.0,0.00027721,2]
[355113017,1740903047546,-500.0,0.00027721,2]
[355113019,1740903047556,-500.0,0.00027721,2]
[355113022,1740903047566,-653.55,0.00027721,2]
[355113024,1740903047575,-4202.14,0.00027721,2]
[355113025,1740903047585,-500.0,0.00027721,2]
[355113027,1740903047595,-500.0,0.00027721,2]
[355113029,1740903047605,-150.0,0.00027726,2]
[355113032,1740903047614,-318.89140289,0.00027728,4]
[355113033,1740903047624,-150.0,0.00027801,2]
[355113036,1740903047639,-150.0,0.00027807,2]
[355113038,1740903047664,-150.0,0.00027828,2]
[355113041,1740903047675,-5062.06449577,0.00027833,2]
[355113043,1740903047687,-150.0,0.00027836,2]
[355113045,1740903047698,-773.15315248,0.00027895,2]
[355113057,1740903047838,-299.54485859,0.00027895,2]
[355113066,1740903908456,10000.0,0.00015,2]
[355113067,1740903908485,10000.0,0.00015,2]
[355113068,1740903908512,10000.0,0.00015,2]
[355113069,1740903908542,10000.0,0.00015,2]
[355113070,1740903908569,10000.0,0.00015,2]
[355113071,1740903908597,10000.0,0.00015,2]
[355113081,1740904074684,44219.40477688,0.000139,2]
[355113082,1740904075422,1201.64384592,0.0001,2]
[355113083,1740904090050,150.31495666,0.0001,2]
[355113092,1740904118952,1664.48103165,0.00013,2]
[355113123,1740904231848,-3750.22640914,0.00015,2]
[355113129,1740904237645,-612.77309991,0.00015,2]
[355113130,1740904237658,-339.215,0.00015,2]
[355113131,1740904237808,-578.41051673,0.00015,2]
[355113132,1740904237821,-33289.60196816,0.00015,2]
[355113133,1740904237865,-21512.46558,0.00015,2]
[355113134,1740904239839,-265.74139078,0.00015,2]
[355113135,1740904239894,-831.45284578,0.00015,2]
[355113136,1740904240057,-7941.7518,0.00015,2]
[355113137,1740904240114,-411.31082313,0.00015,2]
[355113138,1740904240228,-405.00342011,0.00015,2]
[355113139,1740904242894,-1099.45166358,0.00015,2]
[355113146,1740904246190,-6995.1584574,0.00015,2]
[355113147,1740904246202,-1973.96669517,0.00015,2]
[355113148,1740904246211,-250.0,0.00016471,2]
[355113149,1740904246221,-211.10306694,0.000249,4]
[355113150,1740904246231,-3154.32018785,0.00025,2]
[355113151,1740904246275,-11109.139923,0.00025,2]
[355113152,1740904246286,-1296.61574821,0.00025,2]
[355113153,1740904246298,-564.88228283,0.00025,2]
[355113186,1740905431951,-721.27,0.00024198,2]
[355113187,1740905431962,-300.0,0.00024999,2]
[355113188,1740905431972,-603.91042875,0.00025,2]
[355113189,1740905431983,-837.24311816,0.00025,2]
[355113190,1740905431995,-267.43626637,0.00025,2]
[355113191,1740905432005,-206.65124908,0.00025,30]
[355113192,1740905432015,-99.04474377,0.00025,2]
[355113193,1740905432027,-449.32685517,0.00025,2]
[355113194,1740905432039,-299.99,0.00025,2]
[355113195,1740905432051,-467.88216372,0.00025,2]
[355113196,1740905432062,-330.77623734,0.00025,2]
[355113197,1740905432072,-264.90259312,0.00025,2]
[355113198,1740905432113,-264.09415688,0.00025,2]
[355113199,1740905432123,-150.0,0.00025016,2]
[355113200,1740905432132,-133.10849837,0.00025103,2]
[355113201,1740905432144,-16.89150163,0.00025103,2]
[355113202,1740905432154,-150.0,0.0002519,2]
[355113203,1740905432163,-150.0,0.00025205,2]
[355113204,1740905432173,-150.0,0.00025226,2]
[355113205,1740905432182,-500.0,0.00025315,2]
[355113206,1740905432192,-168.14481033,0.00025325,2]
[355113207,1740905432202,-421.0,0.00025342,2]
[355113208,1740905432218,-150.0,0.0002537,2]
[355113209,1740905432228,-199.27,0.00025392,120]
[355113210,1740905432238,-150.0,0.00025411,2]
[355113211,1740905432247,-161.61,0.00025566,2]
[355113212,1740905432257,-150.15,0.0002571,2]
[355113213,1740905432267,-250.0,0.00025779,2]
[355113214,1740905432276,-159.98,0.00025828,2]
[355113215,1740905432286,-1000.0,0.00025851,2]
[355113216,1740905432295,-150.0,0.00025858,2]
[355113217,1740905432305,-246.0,0.00025871,30]
[355113218,1740905432314,-150.15,0.00025908,2]
[355113219,1740905432325,-150.0,0.00025919,7]
[355113220,1740905432334,-940.16,0.00026043,2]
[355113221,1740905432344,-150.0,0.00026096,2]
[355113222,1740905432353,-150.15,0.00026105,2]
[355113223,1740905432363,-150.0,0.0002613,2]
[355113224,1740905432373,-1747.64,0.00026186,2]
[355113225,1740905432383,-150.0,0.00026226,2]
[355113226,1740905432392,-150.0,0.00026278,2]
[355113227,1740905432402,-777.33,0.00026301,2]
[355113228,1740905432411,-777.33,0.00026301,2]
[355113229,1740905432423,-777.52,0.00026301,2]
[355113230,1740905432434,-777.52,0.00026301,2]
[355113231,1740905432443,-777.33,0.00026301,2]
[355113232,1740905432453,-150.15,0.00026303,2]
[355113233,1740905432463,-150.0,0.00026455,2]
[355113234,1740905432474,-721.27,0.00026462,2]
[355113235,1740905432484,-150.0,0.00026497,2]
[355113236,1740905432493,-150.15,0.00026501,2]
[355113237,1740905432505,-150.0,0.00026581,2]
[355113238,1740905432514,-150.15,0.00026699,2]
[355113239,1740905432523,-1184.17278687,0.00026753,2]
[355113240,1740905432533,-150.0,0.00026783,2]
[355113241,1740905432542,-326.636,0.00026798,14]
[355113242,1740905432552,-629.6517,0.00026798,2]
[355113243,1740905432561,-4918.187,0.00026799,2]
[355113244,1740905432570,-5709.0,0.00026799,2]
[355113245,1740905432580,-30672.2398,0.00026799,2]
[355113246,1740905432591,-1843.13547289,0.00026799,2]
[355113247,1740905432600,-5429.14180054,0.00026799,2]
[355113248,1740905432609,-151.0503,0.00026799,2]
[355113249,1740905432619,-338.9563,0.000268,2]
[355113250,1740905432629,-150.0,0.00026847,2]
[355113251,1740905432638,-164.12361409,0.00026873,2]
[355113252,1740905432648,-165.37057107,0.00026873,2]
[355113253,1740905432657,-150.0,0.00026875,2]
[355113254,1740905432667,-310.29191996,0.0002689,2]
[355113255,1740905432676,-150.15,0.00026896,2]
[355113256,1740905432685,-500.0,0.00026897,2]
[355113257,1740905432695,-500.0,0.00026897,2]
[355113258,1740905432704,-500.0,0.00026897,2]
[355113259,1740905432714,-500.0,0.00026897,2]
[355113260,1740905432723,-635.08206898,0.00026897,2]
[355113261,1740905432734,-500.0,0.00026897,2]
[355113262,1740905432743,-500.0,0.00026897,2]
[355113263,1740905432753,-500.0,0.00026897,2]
[355113264,1740905432762,-298.7217127,0.00026897,2]
[355113265,1740905432771,-362.77116651,0.00026897,2]
[355113266,1740905432780,-63912.3879965,0.00026898,6]
[355113267,1740905432793,-34800.0,0.00026898,6]
[355113268,1740905432804,-614.9899999,0.00026898,6]
[355113269,1740905432823,-840.73150475,0.00026898,6]
[355113270,1740905432835,-1412.60721373,0.00026898,6]
[355113271,1740905432847,-297.47992462,0.00026898,6]
[355113272,1740905432860,-198946.7894536,0.00026898,6]
[355113273,1740905432873,-6499.51827202,0.00026898,6]
[355113274,1740905432884,-9937.90477156,0.00026898,6]
[355113276,1740905437861,-501.24272892,0.00026873,2]
[355113277,1740905437871,-784.01515646,0.00026898,6]
[355113278,1740905437883,-4265.0478493,0.00026898,6]
[355113279,1740905438018,-4152.41,0.00026898,6]
[355113280,1740905438123,-493.2749825,0.00026898,6]
[355113281,1740905438135,-317.659,0.00026898,6]
[355113295,1740905439953,-1966.75235456,0.00026898,6]
[355113296,1740905440007,-10077.542345,0.00026898,6]
[355113297,1740905440165,-80901.33022206,0.00026898,6]
[355113298,1740905440177,-35313.80115899,0.00026898,6]
[355113299,1740905440223,-1321.96613788,0.00026898,6]
[355113300,1740905440235,-5650.0,0.00026898,6]
[355113301,1740905440247,-421.18,0.00026898,6]
[355113302,1740905440326,-600.60018251,0.00026898,6]
[355113335,1740905443975,-7501.94709964,0.00026898,6]
[355113336,1740905444028,-460.8,0.00026898,6]
[355113337,1740905444188,-777.52,0.00026301,2]
[355113338,1740905444198,-5460.07311716,0.00026898,6]
[355113339,1740905444210,-7093.46253267,0.00026898,6]
[355113346,1740905446034,-5256.80159156,0.00026898,6]
[355113347,1740905446087,-694.20422217,0.00026898,6]
[355113348,1740905446142,-8607.59999999,0.00026898,6]
[355113349,1740905446195,-653.99902011,0.00026898,6]
[355113350,1740905446250,-6256.12301882,0.00026898,6]
[355113352,1740905705451,250.0,0.00013,2]
[355113373,1740906568311,-300.0,0.00015,2]
[355113388,1740906632483,-201.0,0.0002321,2]
[355113389,1740906632494,-160.273773,0.00023948,2]
[355113390,1740906632503,-6.26195158,0.0002407,2]
[355113438,1740906638227,-194.73804842,0.0002407,2]
[355113439,1740906638238,-201.0,0.0002493,2]
[355113440,1740906638247,-34.26195158,0.0002493,2]
[355113441,1740906638279,-1742.06705315,0.0002493,2]
[355114090,1740906646260,-30293.08648338,0.0002493,2]
[355114091,1740906646270,-649.14,0.00024934,2]
[355114092,1740906646280,-201.0,0.0002579,2]
[355114093,1740906646289,-1123.0,0.00026,3]
[355114094,1740906646299,-470.81,0.00026,2]
[355114095,1740906646310,-777.33,0.00026,2]
[355114096,1740906646321,-777.33,0.00026,2]
[355114097,1740906646330,-250.0,0.0002603,2]
[355114098,1740906646340,-1011.0,0.00026085,2]
[355114099,1740906646350,-2839.0,0.00026085,2]
[355114100,1740906646359,-150.0,0.00026085,2]
[355114101,1740906646369,-225.5,0.00026112,30]
[355114102,1740906646378,-1985.27,0.00026146,2]
[355114103,1740906646388,-7686.86,0.00026162,2]
[355114104,1740906646397,-1000.0,0.00026187,2]
[355114105,1740906646407,-159.98,0.00026238,2]
[355114106,1740906646416,-150.0,0.00026238,7]
[355114107,1740906646426,-440.83062,0.0002663,2]
[355114108,1740906646436,-201.0,0.0002664,2]
[355114109,1740906646446,-4886.22762045,0.00026799,2]
[355114110,1740906646456,-1554.66,0.000268,2]
[355114111,1740906646466,-261.309,0.000268,14]
[355114112,1740906646475,-1000.0,0.000268,2]
[355114113,1740906646485,-1000.0,0.000268,2]
[355114114,1740906646495,-1000.0,0.000268,2]
[355114115,1740906646504,-1000.0,0.000268,2]
[355114116,1740906646513,-1015.0,0.000268,2]
[355114117,1740906646523,-1000.0,0.000268,3]
[355114118,1740906646533,-1000.0,0.000268,3]
[355114119,1740906646543,-264.42463009,0.000268,2]
[355114120,1740906646560,-740.57536991,0.000268,2]
[355114121,1740906646570,-1000.0,0.000268,2]
[355114122,1740906646579,-1000.0,0.000268,2]
[355114123,1740906646589,-185.88973418,0.000268,2]
[355114124,1740906646599,-1000.0,0.000268,2]
[355114125,1740906646608,-1175.0,0.000268,2]
[355114126,1740906646617,-1000.0,0.000268,2]
[355114128,1740906646627,-945.14604866,0.000268,3]
[355114129,1740906646638,-54.85395134,0.000268,3]
[355114131,1740906646647,-617.54211481,0.00026896,5]
[355114133,1740906646659,-55.77878707,0.00026896,5]
[355114135,1740906646668,-300.0,0.00026898,2]
[355114136,1740906646678,-500.0,0.00026898,2]
[355114137,1740906646687,-520.22121293,0.00026899,2]
[355114138,1740906646698,-33406.36751644,0.00026899,2]
[355114145,1740907508630,9700.0,0.00015,2]
[355114146,1740907508685,10000.0,0.00015,2]
[355114147,1740907508718,10000.0,0.00015,2]
[355114148,1740907508808,250.0,0.00013,2]
[355114223,1740907800161,-1658.82192552,0.000149,2]
[355114224,1740907800191,-3610.213523,0.000149,2]
[355114230,1740907832381,-787.39133545,0.000149,2]
[355114231,1740907832392,-500.0,0.00014973,2]
[355114232,1740907832401,-500.0,0.00014999,2]
[355114233,1740907832411,-242.49301471,0.00014999,2]
[355114234,1740907832435,-102.06443358,0.00014999,2]
[355114235,1740907832445,-500.0,0.00014999,2]
[355114236,1740907832455,-500.0,0.00014999,2]
[355114237,1740907832464,-151.4190185,0.00014999,2]
[355114238,1740907832473,-11194.68196519,0.00015,2]
[355114239,1740907832543,-1151.55012815,0.00015,2]
[355114240,1740907832555,-640.09000008,0.00015,2]
[355114241,1740907832567,-256.7011023,0.00015,2]
[355114242,1740907832578,-254.46,0.00015,2]
[355114243,1740907832861,-1958.84225498,0.00015,2]
[355114287,1740907838437,-3150.27703406,0.00015,2]
[355114288,1740907838546,-8156.25118615,0.00015,2]
[355114292,1740907840627,-5247.5198923,0.00015,2]
[355114293,1740907840640,-1539.75,0.00015,2]
[355114294,1740907840652,-27421.32474393,0.00015,2]
[355114295,1740907840736,-583.12,0.00015,2]
[355114296,1740907840791,-477.36805861,0.00015,2]
[355114297,1740907840847,-1808.49877086,0.00015,2]
[355114298,1740907840859,-3198.27708891,0.00015,2]
[355114299,1740907841009,-792.9191155,0.00015,2]
[355114314,1740907843491,-339551.82062531,0.00015,2]
[355114322,1740907846449,-435.3546517,0.00015,2]
[355114323,1740907846461,-819.47836483,0.00015,2]
[355114324,1740907846611,-4884.52368908,0.00015,2]
[355114327,1740908595004,-3957.84437256,0.000149,2]
[355114328,1740908611772,-745.15562744,0.0001499,2]
[355114330,1740908650463,-627.0,0.0001499,2]
[355114331,1740908737652,-214.49373899,0.0001499,2]
[355114332,1740908737678,-150.0,0.00014995,2]
[355114333,1740908737704,-300.0,0.00014999,2]
[355114334,1740908737733,-68335.50626101,0.00015,2]
[355114338,1740908775834,367.35885,0.0001485,2]
[355114367,1740909031616,-3562.05993534,0.000149,2]
[355114368,1740909031626,-3991.46929603,0.00015,2]
[355114369,1740909031668,-1102.14874176,0.00015,2]
[355114370,1740909031723,-397.5499758,0.00015,2]
[355114371,1740909031735,-571.5552,0.00015,2]
[355114372,1740909031747,-772.1419729,0.00015,2]
[355114373,1740909031759,-6834.64085429,0.00015,2]
[355114374,1740909031770,-2614.97457783,0.00015,2]
[355114375,1740909031782,-3859.27584048,0.00015,2]
[355114376,1740909031794,-3592.79863,0.00015,2]
[355114377,1740909031806,-2427.49534836,0.00015,2]
[355114378,1740909031830,-3433.82628775,0.00015,2]
[355114379,1740909031887,-765.41038016,0.00015,2]
[355114380,1740909031899,-19919.32582477,0.00015,2]
[355114381,1740909031911,-2372.41572944,0.00015,2]
[355114382,1740909031944,-603.43161078,0.00015,2]
[355114383,1740909031955,-363.36010393,0.00015,2]
[355114388,1740909037464,-23624.3013786,0.00015,2]
[355114389,1740909037476,-600.45761951,0.00015,2]
[355114390,1740909037487,-453.30570109,0.00015,2]
[355114391,1740909037518,-1433.91078519,0.00015,2]
[355114392,1740909037749,-59571.52481641,0.00015,2]
[355114399,1740909039815,-4738.08606339,0.00015,2]
[355114400,1740909039922,-46.36751306,0.00015,2]
[355114401,1740909039934,-1198.26857935,0.00015,2]
[355114402,1740909039944,-1546.0,0.00015,2]
[355114403,1740909039956,-326.03846343,0.00015,2]
[355114404,1740909040097,-804.0,0.00015,2]
[355114405,1740909040109,-6452.70000001,0.00015,2]
[355114406,1740909040149,-25455.02903796,0.00015,2]
[355114407,1740909040159,-300.0,0.00015,2]
[355114408,1740909040169,-206.67191422,0.00015,2]
[355114409,1740909040179,-574.149872,0.000151,2]
[355114410,1740909040190,-150.0,0.00016489,2]
[355114411,1740909040200,-150.0,0.000165,2]
[355114412,1740909040210,-3562.05993527,0.00016567,2]
[355114413,1740909040219,-150.0,0.00016698,2]
[355114414,1740909040229,-367.35886,0.0001735,2]
[355114415,1740909040238,-3562.05993527,0.00018233,2]
[355114416,1740909040248,-296.64608817,0.000187,2]
[355114418,1740909040257,-296.64608795,0.000187,2]
[355114420,1740909040267,-296.64608795,0.000187,2]
[355114422,1740909040277,-296.64608795,0.000187,2]
[355114424,1740909040287,-296.64608795,0.00019107,2]
[355114426,1740909040297,-296.64608795,0.00019659,2]
[355114428,1740909040307,-367.35886,0.0001985,2]
[355114430,1740909040317,-3562.05993527,0.000199,2]
[355114432,1740909040326,-296.64608795,0.0002021,2]
[355114434,1740909040335,-296.64608795,0.00020762,2]
[355114436,1740909040345,-296.64608795,0.00021314,2]
[355114438,1740909040355,-3562.05993527,0.00021567,2]
[355114440,1740909040364,-296.64608795,0.00021866,3]
[355114442,1740909040373,-367.35886,0.0002235,2]
[355114444,1740909040383,-296.64608795,0.00022417,3]
[355114446,1740909040392,-624.42,0.00022608,2]
[355114448,1740909040402,-296.64608795,0.00022969,3]
[355114451,1740909040412,-3562.05993527,0.00023233,2]
[355114453,1740909040421,-296.64608795,0.00023521,3]
[355114455,1740909040431,-150.0,0.00023755,7]
[355114457,1740909040441,-181.24,0.00023836,2]
[355114459,1740909040451,-296.64608795,0.00024072,3]
[355114461,1740909040461,-200.0,0.00024162,2]
[355114463,1740909040471,-157.89,0.00024184,2]
[355114465,1740909040481,-150.0,0.00024216,2]
[355114467,1740909040490,-168.5,0.0002425,2]
[355114469,1740909040500,-6100.99,0.0002425,2]
[355114471,1740909040510,-1000.0,0.00024302,2]
[355114473,1740909040519,-443.58,0.00024404,2]
[355114475,1740909040529,-250.0,0.00024477,2]
[355114477,1740909040539,-168.5,0.00024596,2]
[355114479,1740909040549,-296.64608795,0.00024624,3]
[355114481,1740909040559,-500.0,0.00024657,2]
[355114483,1740909040568,-500.0,0.00024657,2]
[355114485,1740909040578,-500.0,0.00024657,2]
[355114487,1740909040588,-500.0,0.00024657,2]
[355114489,1740909040597,-500.0,0.00024657,2]
[355114491,1740909040610,-500.0,0.00024657,2]
[355114493,1740909040620,-500.0,0.00024657,2]
[355114495,1740909040630,-500.0,0.00024657,2]
[355114497,1740909040639,-500.0,0.00024657,2]
[355114499,1740909040652,-565.95,0.00024657,2]
[355114501,1740909040662,-500.0,0.00024657,2]
[355114503,1740909040672,-500.0,0.00024657,2]
[355114505,1740909040682,-564.6,0.00024657,2]
[355114507,1740909040692,-500.0,0.00024657,2]
[355114509,1740909040702,-500.0,0.00024657,2]
[355114511,1740909040711,-500.0,0.00024657,2]
[355114513,1740909040721,-500.0,0.00024657,2]
[355114515,1740909040730,-500.0,0.00024657,2]
[355114517,1740909040739,-500.0,0.00024657,2]
[355114519,1740909040749,-500.0,0.00024657,2]
[355114521,1740909040758,-625.49,0.00024657,2]
[355114523,1740909040767,-500.0,0.00024657,2]
[355114525,1740909040776,-500.0,0.00024657,2]
[355114527,1740909040787,-500.0,0.00024657,2]
[355114529,1740909040796,-500.0,0.00024657,2]
[355114531,1740909040806,-500.0,0.00024657,2]
[355114533,1740909040815,-500.0,0.00024657,2]
[355114535,1740909040825,-500.0,0.00024657,2]
[355114537,1740909040835,-500.0,0.00024657,2]
[355114539,1740909040845,-500.0,0.00024657,2]
[355114541,1740909040855,-384.54563274,0.00024657,2]
[355114543,1740909040865,-500.0,0.00024657,2]
[355114545,1740909040874,-500.0,0.00024657,2]
[355114547,1740909040884,-500.0,0.00024657,2]
[355114549,1740909040893,-500.0,0.00024657,2]
[355114551,1740909040903,-500.0,0.00024657,2]
[355114553,1740909040913,-500.0,0.00024657,2]
[355114555,1740909040923,-309.14838362,0.00024657,2]
[355114557,1740909040933,-500.0,0.00024657,2]
[355114559,1740909040942,-500.0,0.00024657,2]
[355114561,1740909040952,-500.0,0.00024657,2]
[355114563,1740909040962,-500.0,0.00024657,2]
[355114565,1740909040973,-500.0,0.00024657,2]
[355114587,1740909041178,-564.03726991,0.00024657,2]
[355114589,1740909041192,-500.0,0.00024657,2]
[355114591,1740909041202,-500.0,0.00024657,2]
[355114593,1740909041212,-500.0,0.00024657,2]
[355114595,1740909041223,-500.0,0.00024657,2]
[355114597,1740909041233,-544.62,0.00024657,2]
[355114599,1740909041243,-500.0,0.00024657,2]
[355114601,1740909041252,-500.0,0.00024657,2]
[355114603,1740909041262,-200.28745012,0.00024657,2]
[355114605,1740909041271,-500.0,0.00024657,2]
[355114607,1740909041281,-500.0,0.00024657,2]
[355114609,1740909041290,-500.0,0.00024657,2]
[355114611,1740909041300,-614.62013497,0.00024657,2]
[355114613,1740909041309,-500.0,0.00024657,2]
[355114615,1740909041319,-500.0,0.00024657,2]
[355114617,1740909041328,-500.0,0.00024657,2]
[355114620,1740909041338,-446.33577354,0.00024657,2]
[355114622,1740909041348,-3501.78,0.00024657,2]
[355114624,1740909041358,-500.0,0.00024657,2]
[355114626,1740909041367,-503.61,0.00024657,2]
[355114628,1740909041377,-500.0,0.00024657,2]
[355114629,1740909041387,-500.0,0.00024657,2]
[355114631,1740909041396,-515.39,0.00024657,2]
[355114633,1740909041405,-1749.29,0.00024657,2]
[355114635,1740909041414,-500.0,0.00024657,2]
[355114637,1740909041424,-500.0,0.00024657,2]
[355114639,1740909041433,-500.0,0.00024657,2]
[355114641,1740909041442,-2000.0,0.00024676,120]
[355114643,1740909041451,-206.7,0.00024712,30]
[355114645,1740909041461,-349.33,0.00024732,2]
[355114647,1740909041470,-367.35885,0.0002485,2]
[355114649,1740909041479,-624.42,0.00024872,2]
[355114651,1740909041489,-1939.03981933,0.000249,2]
[355114653,1740909041499,-3562.05993527,0.000249,2]
[355114655,1740909041508,-500.0,0.00024931,2]
[355114657,1740909041518,-500.0,0.00024931,2]
[355114659,1740909041527,-500.0,0.00024931,2]
[355114661,1740909041537,-500.0,0.00024931,2]
[355114663,1740909041546,-500.0,0.00024931,2]
[355114665,1740909041555,-500.0,0.00024931,2]
[355114667,1740909041565,-262.86877527,0.00024931,2]
[355114669,1740909041574,-544.62,0.00024931,2]
[355114671,1740909041584,-569.38,0.00024931,2]
[355114673,1740909041594,-500.0,0.00024931,2]
[355114675,1740909041604,-500.0,0.00024931,2]
[355114677,1740909041618,-3501.78,0.00024931,2]
[355114679,1740909041627,-500.0,0.00024931,2]
[355114681,1740909041637,-1749.29,0.00024931,2]
[355114683,1740909041647,-168.5,0.00024943,2]
[355114685,1740909041657,-777.33,0.00024982,2]
[355114687,1740909041668,-1554.17,0.00024982,2]
[355114689,1740909041677,-1680.92,0.00024982,2]
[355114691,1740909041687,-2522.27652003,0.00025,2]
[355114693,1740909041697,-777.33,0.00025041,2]
[355114695,1740909041707,-159.41,0.00025117,120]
[355114697,1740909041716,-296.64608795,0.00025176,4]